[Event "*** Titled Tuesday Blitz"]
[Site "Chess.com"]
[Date "2018.06.05"]
[Round "5"]
[White "wonderfultime"]
[Black "BillieKimbah"]
[Result "0-1"]
[WhiteElo "2854"]
[BlackElo "2779"]
[TimeControl "180+2"]
[EndTime "14:14:28 PDT"]
[Termination "BillieKimbah won on time"]

1. d4 {[%clk 0:03:01.9]} 1... Nf6 {[%clk 0:03:00.5]} 2. Nf3 {[%clk 0:03:01.6]}
2... d5 {[%clk 0:03:01.2]} 3. Bf4 {[%clk 0:03:02.1]} 3... Bf5 {[%clk 0:03:00.6]}
4. e3 {[%clk 0:03:02.6]} 4... e6 {[%clk 0:03:01.4]} 5. Bd3 {[%clk 0:03:03.5]}
5... Bd6 {[%clk 0:02:57.8]} 6. Bg3 {[%clk 0:03:00.8]} 6... Bg6 {[%clk
0:02:57.9]} 7. O-O {[%clk 0:03:01.4]} 7... O-O {[%clk 0:02:58.1]} 8. c4 {[%clk
0:03:01.8]} 8... dxc4 {[%clk 0:02:39.7]} 9. Bxc4 {[%clk 0:03:01.8]} 9... c5
{[%clk 0:02:36.4]} 10. Nc3 {[%clk 0:03:02.9]} 10... cxd4 {[%clk 0:02:34.7]} 11.
Qxd4 {[%clk 0:03:01.6]} 11... Bxg3 {[%clk 0:02:34.6]} 12. hxg3 {[%clk
0:03:03.5]} 12... Nc6 {[%clk 0:02:32.7]} 13. Qc5 {[%clk 0:02:15.1]} 13... Rc8
{[%clk 0:02:21.6]} 14. Rfd1 {[%clk 0:02:14.1]} 14... Qa5 {[%clk 0:02:13.2]} 15.
Qxa5 {[%clk 0:02:06.8]} 15... Nxa5 {[%clk 0:02:15.1]} 16. Be2 {[%clk 0:02:08.4]}
16... Nc4 {[%clk 0:02:12.4]} 17. Bxc4 {[%clk 0:02:00.3]} 17... Rxc4 {[%clk
0:02:14.3]} 18. Ne5 {[%clk 0:02:02.2]} 18... Rcc8 {[%clk 0:01:56]} 19. Rd4
{[%clk 0:01:59.8]} 19... Rfd8 {[%clk 0:01:49.4]} 20. Rad1 {[%clk 0:02:00.7]}
20... Rxd4 {[%clk 0:01:48.7]} 21. Rxd4 {[%clk 0:02:02.6]} 21... Kf8 {[%clk
0:01:49.3]} 22. f3 {[%clk 0:02:00.6]} 22... Ke7 {[%clk 0:01:49.1]} 23. e4 {[%clk
0:01:56.9]} 23... a6 {[%clk 0:01:47.1]} 24. Kf2 {[%clk 0:01:56.1]} 24... Rc5
{[%clk 0:01:47.3]} 25. Nd3 {[%clk 0:01:56.8]} 25... Rc7 {[%clk 0:01:47.7]} 26.
a4 {[%clk 0:01:46.3]} 26... Nd7 {[%clk 0:01:47.9]} 27. Rb4 {[%clk 0:01:40.3]}
27... f6 {[%clk 0:01:46.9]} 28. Ke3 {[%clk 0:01:19.6]} 28... Bf7 {[%clk
0:01:47]} 29. a5 {[%clk 0:01:10.2]} 29... e5 {[%clk 0:01:45.2]} 30. Na4 {[%clk
0:01:07.6]} 30... Be6 {[%clk 0:01:33.6]} 31. g4 {[%clk 0:01:07.1]} 31... Kd6
{[%clk 0:01:05.6]} 32. Nb6 {[%clk 0:00:56.5]} 32... Nb8 {[%clk 0:00:57.8]} 33.
Na4 {[%clk 0:00:50.8]} 33... Nc6 {[%clk 0:00:53.3]} 34. Rb6 {[%clk 0:00:50.6]}
34... Ke7 {[%clk 0:00:53.6]} 35. Nac5 {[%clk 0:00:48.8]} 35... Bc8 {[%clk
0:00:54.6]} 36. b4 {[%clk 0:00:47.1]} 36... Nd4 {[%clk 0:00:53]} 37. g5 {[%clk
0:00:44.9]} 37... Nb5 {[%clk 0:00:44.2]} 38. gxf6+ {[%clk 0:00:44.9]} 38... gxf6
{[%clk 0:00:44.9]} 39. f4 {[%clk 0:00:31.2]} 39... Na3 {[%clk 0:00:45.7]} 40.
fxe5 {[%clk 0:00:23.1]} 40... Nc4+ {[%clk 0:00:43.8]} 41. Kd4 {[%clk 0:00:24.5]}
41... Nxb6 {[%clk 0:00:44]} 42. axb6 {[%clk 0:00:26.4]} 42... Rc6 {[%clk
0:00:44.3]} 43. Nf4 {[%clk 0:00:27.7]} 43... fxe5+ {[%clk 0:00:37.8]} 44. Kxe5
{[%clk 0:00:29.6]} 44... a5 {[%clk 0:00:37.7]} 45. Nd5+ {[%clk 0:00:30.7]} 45...
Kd8 {[%clk 0:00:37.5]} 46. Kd4 {[%clk 0:00:18.1]} 46... axb4 {[%clk 0:00:38.2]}
47. Nxb4 {[%clk 0:00:09.4]} 47... Rxb6 {[%clk 0:00:39.2]} 48. Nd5 {[%clk
0:00:11.3]} 48... Rb2 {[%clk 0:00:34.1]} 49. Ne3 {[%clk 0:00:11.4]} 49... b6
{[%clk 0:00:32.3]} 50. Nd3 {[%clk 0:00:12.7]} 50... Rb1 {[%clk 0:00:33]} 51. Nf4
{[%clk 0:00:09.5]} 51... Bb7 {[%clk 0:00:28.1]} 52. e5 {[%clk 0:00:10.9]} 52...
Rb4+ {[%clk 0:00:28.4]} 0-1

[Event "*** Titled Tuesday Blitz"]
[Site "Chess.com"]
[Date "2018.06.05"]
[Round "5"]
[White "Ravan_02"]
[Black "ehrenfeld"]
[Result "1-0"]
[WhiteElo "2488"]
[BlackElo "2453"]
[TimeControl "180+2"]
[EndTime "14:14:41 PDT"]
[Termination "Ravan_02 won by resignation"]

1. Nf3 {[%clk 0:03:01.9]} 1... d6 {[%clk 0:02:54.9]} 2. g3 {[%clk 0:03:03.8]}
2... e5 {[%clk 0:02:54.9]} 3. d3 {[%clk 0:03:04.1]} 3... f5 {[%clk 0:02:55.7]}
4. Bg2 {[%clk 0:03:05]} 4... Nf6 {[%clk 0:02:56.7]} 5. Bg5 {[%clk 0:03:05.9]}
5... Be7 {[%clk 0:02:57.7]} 6. Nc3 {[%clk 0:03:06.2]} 6... O-O {[%clk
0:02:58.4]} 7. Bxf6 {[%clk 0:03:06.3]} 7... Bxf6 {[%clk 0:02:58.8]} 8. Nd5
{[%clk 0:03:07.9]} 8... Nd7 {[%clk 0:02:57]} 9. O-O {[%clk 0:03:07.2]} 9... c6
{[%clk 0:02:53]} 10. Nxf6+ {[%clk 0:03:07.8]} 10... Nxf6 {[%clk 0:02:53.8]} 11.
c3 {[%clk 0:03:08.5]} 11... Kh8 {[%clk 0:02:50.6]} 12. a4 {[%clk 0:03:01.8]}
12... a5 {[%clk 0:02:49.3]} 13. Qb3 {[%clk 0:03:01.6]} 13... Qe8 {[%clk
0:02:44.6]} 14. Qc4 {[%clk 0:02:58.3]} 14... Qh5 {[%clk 0:02:37.9]} 15. Qh4
{[%clk 0:02:58.2]} 15... Qf7 {[%clk 0:02:35.8]} 16. d4 {[%clk 0:02:50.9]} 16...
e4 {[%clk 0:02:33.1]} 17. Ng5 {[%clk 0:02:51]} 17... Qg6 {[%clk 0:02:17.8]} 18.
Nh3 {[%clk 0:02:49.9]} 18... d5 {[%clk 0:02:14]} 19. Qf4 {[%clk 0:02:48.1]}
19... Nh5 {[%clk 0:02:09.1]} 20. Qg5 {[%clk 0:02:47.1]} 20... Qf7 {[%clk
0:02:07.9]} 21. f3 {[%clk 0:02:37.7]} 21... h6 {[%clk 0:02:06.1]} 22. Qd2 {[%clk
0:02:37.1]} 22... Nf6 {[%clk 0:02:02.1]} 23. fxe4 {[%clk 0:02:10.6]} 23... fxe4
{[%clk 0:01:58]} 24. Nf4 {[%clk 0:02:10.2]} 24... g5 {[%clk 0:01:54.3]} 25. Nh3
{[%clk 0:02:09.3]} 25... Be6 {[%clk 0:01:47.6]} 26. Nf2 {[%clk 0:02:04.2]} 26...
Qg6 {[%clk 0:01:41]} 27. Nd1 {[%clk 0:02:01]} 27... Rf7 {[%clk 0:01:27.8]} 28.
Ne3 {[%clk 0:02:01.3]} 28... Raf8 {[%clk 0:01:28.5]} 29. c4 {[%clk 0:02:01.7]}
29... dxc4 {[%clk 0:01:24.2]} 30. Qxa5 {[%clk 0:02:01.6]} 30... Kg8 {[%clk
0:00:50.6]} 31. Qe5 {[%clk 0:01:56.3]} 31... Bd5 {[%clk 0:00:49]} 32. Bh3 {[%clk
0:01:48.6]} 32... g4 {[%clk 0:00:44.5]} 33. Bg2 {[%clk 0:01:47.9]} 33... h5
{[%clk 0:00:45.1]} 34. Rf5 {[%clk 0:01:38]} 34... Nd7 {[%clk 0:00:37.6]} 35.
Rxf7 {[%clk 0:01:21.6]} 35... Nxe5 {[%clk 0:00:36.5]} 36. Rxf8+ {[%clk
0:01:21.6]} 36... Kxf8 {[%clk 0:00:37.3]} 37. dxe5 {[%clk 0:01:22.7]} 37... Qg5
{[%clk 0:00:35]} 38. Rf1+ {[%clk 0:01:21.1]} 38... Ke7 {[%clk 0:00:35.9]} 39.
Nf5+ {[%clk 0:01:22.3]} 39... Kd7 {[%clk 0:00:34.9]} 40. Rf4 {[%clk 0:01:11.4]}
40... Be6 {[%clk 0:00:32]} 41. Bxe4 {[%clk 0:01:10.4]} 41... Bxf5 {[%clk
0:00:30.9]} 42. Bxf5+ {[%clk 0:01:09.3]} 42... Ke7 {[%clk 0:00:32.1]} 43. e4
{[%clk 0:00:55.8]} 43... Qg7 {[%clk 0:00:31.8]} 44. Rf2 {[%clk 0:00:37.6]} 44...
Qxe5 {[%clk 0:00:32.2]} 45. Rd2 {[%clk 0:00:39.1]} 45... b5 {[%clk 0:00:27.6]}
46. a5 {[%clk 0:00:37.4]} 46... Qc7 {[%clk 0:00:21.8]} 47. Rd7+ {[%clk 0:00:35]}
47... Qxd7 {[%clk 0:00:22.4]} 48. Bxd7 {[%clk 0:00:36.9]} 48... Kxd7 {[%clk
0:00:21.6]} 49. a6 {[%clk 0:00:38.4]} 49... Kc7 {[%clk 0:00:21.2]} 50. e5 {[%clk
0:00:39.6]} 50... b4 {[%clk 0:00:22.2]} 51. a7 {[%clk 0:00:28.5]} 51... Kb7
{[%clk 0:00:22.6]} 52. a8=Q+ {[%clk 0:00:24.2]} 52... Kxa8 {[%clk 0:00:23.2]}
53. e6 {[%clk 0:00:26.1]} 53... c3 {[%clk 0:00:24.4]} 54. bxc3 {[%clk
0:00:26.6]} 54... b3 {[%clk 0:00:20.5]} 55. e7 {[%clk 0:00:28.5]} 55... b2
{[%clk 0:00:20.4]} 56. e8=Q+ {[%clk 0:00:30.4]} 56... Ka7 {[%clk 0:00:21.4]} 57.
Qe1 {[%clk 0:00:32.3]} 1-0

[Event "*** Titled Tuesday Blitz"]
[Site "Chess.com"]
[Date "2018.06.05"]
[Round "5"]
[White "PrinceMurad09"]
[Black "Buffy7"]
[Result "1-0"]
[WhiteElo "2428"]
[BlackElo "2695"]
[TimeControl "180+2"]
[EndTime "14:14:47 PDT"]
[Termination "PrinceMurad09 won by resignation"]

1. e4 {[%clk 0:03:01.9]} 1... c5 {[%clk 0:02:59.7]} 2. Nf3 {[%clk 0:03:02.7]}
2... d6 {[%clk 0:03:01]} 3. d4 {[%clk 0:03:03.4]} 3... cxd4 {[%clk 0:03:02.9]}
4. Nxd4 {[%clk 0:03:05.2]} 4... Nf6 {[%clk 0:03:04.2]} 5. Nc3 {[%clk 0:03:06.6]}
5... a6 {[%clk 0:03:05.4]} 6. Be3 {[%clk 0:03:05.4]} 6... e5 {[%clk 0:03:04.5]}
7. Nf3 {[%clk 0:03:06.9]} 7... Qc7 {[%clk 0:02:58.6]} 8. a4 {[%clk 0:03:07.3]}
8... b6 {[%clk 0:02:53.6]} 9. Be2 {[%clk 0:03:07.1]} 9... Nbd7 {[%clk
0:02:51.6]} 10. O-O {[%clk 0:03:07.4]} 10... Be7 {[%clk 0:02:49.8]} 11. Nh4
{[%clk 0:03:01.9]} 11... g6 {[%clk 0:02:40.5]} 12. f4 {[%clk 0:02:54.2]} 12...
Bb7 {[%clk 0:02:38.4]} 13. Bf3 {[%clk 0:02:49.4]} 13... exf4 {[%clk 0:02:37.3]}
14. Bxf4 {[%clk 0:02:46.6]} 14... Ne5 {[%clk 0:02:38.8]} 15. Bg5 {[%clk
0:02:35.6]} 15... h6 {[%clk 0:02:37.2]} 16. Bxf6 {[%clk 0:02:31.5]} 16... Bxf6
{[%clk 0:02:39.1]} 17. Qe1 {[%clk 0:02:32.1]} 17... Qe7 {[%clk 0:02:32.8]} 18.
g3 {[%clk 0:02:24.7]} 18... Rc8 {[%clk 0:02:26.9]} 19. Ng2 {[%clk 0:02:24.3]}
19... O-O {[%clk 0:02:21.9]} 20. Rd1 {[%clk 0:02:20.2]} 20... Nxf3+ {[%clk
0:02:16.4]} 21. Rxf3 {[%clk 0:02:21.1]} 21... Bxc3 {[%clk 0:02:17.5]} 22. Rxc3
{[%clk 0:02:21.7]} 22... Rxc3 {[%clk 0:02:18]} 23. bxc3 {[%clk 0:02:20.4]} 23...
Bxe4 {[%clk 0:02:05.8]} 24. Nf4 {[%clk 0:02:20.4]} 24... Re8 {[%clk 0:02:05.7]}
25. Qe3 {[%clk 0:02:04.7]} 25... Qc7 {[%clk 0:01:18.5]} 26. Nd5 {[%clk
0:01:51.5]} 26... Qd8 {[%clk 0:01:17.9]} 27. Qxb6 {[%clk 0:01:28]} 27... Qg5
{[%clk 0:01:15.5]} 28. Qe3 {[%clk 0:01:08.3]} 28... Qf5 {[%clk 0:01:15.6]} 29.
Nf4 {[%clk 0:01:02.5]} 29... Bc6 {[%clk 0:00:48.1]} 30. Qd3 {[%clk 0:00:54.7]}
30... Qg4 {[%clk 0:00:42.5]} 31. Rf1 {[%clk 0:00:47.6]} 31... Bxa4 {[%clk
0:00:31.9]} 32. Nd5 {[%clk 0:00:46.1]} 32... Re6 {[%clk 0:00:08.7]} 33. Nf6+
{[%clk 0:00:44.9]} 33... Rxf6 {[%clk 0:00:10]} 34. Rxf6 {[%clk 0:00:46.4]} 34...
Bb5 {[%clk 0:00:11.5]} 35. Qd5 {[%clk 0:00:40]} 35... Bc4 {[%clk 0:00:09.8]} 36.
Qf3 {[%clk 0:00:38.3]} 36... Qd7 {[%clk 0:00:08.5]} 37. Qe3 {[%clk 0:00:34.3]}
37... Be6 {[%clk 0:00:05.9]} 38. Qxh6 {[%clk 0:00:33.6]} 38... Qa7+ {[%clk
0:00:07]} 39. Rf2 {[%clk 0:00:33.2]} 39... a5 {[%clk 0:00:07.5]} 40. Qf4 {[%clk
0:00:32.3]} 40... a4 {[%clk 0:00:07]} 41. Qd4 {[%clk 0:00:33.1]} 41... Qa6
{[%clk 0:00:05.1]} 42. Rf4 {[%clk 0:00:31.2]} 42... a3 {[%clk 0:00:05.9]} 43.
Rh4 {[%clk 0:00:32.3]} 43... Kf8 {[%clk 0:00:03.4]} 44. Qf6 {[%clk 0:00:19.5]}
44... Ke8 {[%clk 0:00:04.6]} 45. Rh8+ {[%clk 0:00:19.8]} 45... Kd7 {[%clk
0:00:06.2]} 46. Qd8+ {[%clk 0:00:20.7]} 46... Kc6 {[%clk 0:00:07.6]} 47. Qa8+
{[%clk 0:00:20.8]} 47... Qxa8 {[%clk 0:00:08.7]} 48. Rxa8 {[%clk 0:00:22.6]}
48... a2 {[%clk 0:00:10.2]} 49. Kf2 {[%clk 0:00:23.4]} 49... Bd5 {[%clk
0:00:11.6]} 50. Ke3 {[%clk 0:00:24.4]} 50... Kd7 {[%clk 0:00:13]} 51. Ra3 {[%clk
0:00:25.6]} 51... Ke6 {[%clk 0:00:14.2]} 52. Kd4 {[%clk 0:00:27]} 52... Bg2
{[%clk 0:00:13.2]} 53. Rxa2 {[%clk 0:00:27.1]} 53... Kf5 {[%clk 0:00:15.1]} 54.
Ra5+ {[%clk 0:00:27.7]} 54... Kg4 {[%clk 0:00:16]} 55. Ra6 {[%clk 0:00:28.7]}
55... d5 {[%clk 0:00:15.9]} 56. Rf6 {[%clk 0:00:29.7]} 56... Kh3 {[%clk
0:00:16.5]} 57. Rxf7 {[%clk 0:00:31.1]} 57... Kxh2 {[%clk 0:00:18.4]} 58. Rg7
{[%clk 0:00:32.5]} 58... Be4 {[%clk 0:00:20.3]} 59. g4 {[%clk 0:00:33.2]} 59...
Kg3 {[%clk 0:00:20]} 60. c4 {[%clk 0:00:34.8]} 60... Kxg4 {[%clk 0:00:20.8]} 61.
cxd5 {[%clk 0:00:36.4]} 61... Bxc2 {[%clk 0:00:22.1]} 62. d6 {[%clk 0:00:37.2]}
62... Bf5 {[%clk 0:00:22.7]} 63. d7 {[%clk 0:00:38.6]} 63... Bxd7 {[%clk
0:00:23.9]} 64. Rxd7 {[%clk 0:00:40.5]} 1-0

[Event "*** Titled Tuesday Blitz"]
[Site "Chess.com"]
[Date "2018.06.05"]
[Round "5"]
[White "matiss90"]
[Black "grzechu96"]
[Result "0-1"]
[WhiteElo "2367"]
[BlackElo "2493"]
[TimeControl "180+2"]
[EndTime "14:14:55 PDT"]
[Termination "grzechu96 won by checkmate"]

1. e4 {[%clk 0:03:01.9]} 1... c5 {[%clk 0:03:00.6]} 2. Nf3 {[%clk 0:03:02.4]}
2... d6 {[%clk 0:03:02]} 3. d4 {[%clk 0:03:03]} 3... cxd4 {[%clk 0:03:03.9]} 4.
Nxd4 {[%clk 0:03:04.8]} 4... Nf6 {[%clk 0:03:05]} 5. Nc3 {[%clk 0:03:06]} 5...
a6 {[%clk 0:03:06.5]} 6. Bc4 {[%clk 0:03:07.2]} 6... e6 {[%clk 0:03:07.5]} 7.
Bb3 {[%clk 0:03:08.4]} 7... b5 {[%clk 0:03:06.8]} 8. O-O {[%clk 0:03:05.8]} 8...
Be7 {[%clk 0:03:04.4]} 9. a3 {[%clk 0:03:03.9]} 9... O-O {[%clk 0:03:01.6]} 10.
f4 {[%clk 0:03:00.6]} 10... Bb7 {[%clk 0:02:47.5]} 11. g3 {[%clk 0:02:54.1]}
11... Nxe4 {[%clk 0:02:46.2]} 12. Nxe4 {[%clk 0:02:53.3]} 12... Bxe4 {[%clk
0:02:48.1]} 13. f5 {[%clk 0:02:54.5]} 13... e5 {[%clk 0:02:41.4]} 14. Qg4 {[%clk
0:02:50.6]} 14... Bb7 {[%clk 0:02:30.5]} 15. Bh6 {[%clk 0:02:50.5]} 15... Bf6
{[%clk 0:02:30.5]} 16. Bxg7 {[%clk 0:02:51.6]} 16... h5 {[%clk 0:02:23.9]} 17.
Qg6 {[%clk 0:02:11]} 17... d5 {[%clk 0:01:59.5]} 18. Qxf6 {[%clk 0:01:55.9]}
18... Qxf6 {[%clk 0:02:00.4]} 19. Bxf6 {[%clk 0:01:55.9]} 19... Nd7 {[%clk
0:02:02]} 20. Bxe5 {[%clk 0:01:45.6]} 20... Nxe5 {[%clk 0:02:03.9]} 21. f6
{[%clk 0:01:46.8]} 21... h4 {[%clk 0:01:47.9]} 22. gxh4 {[%clk 0:01:37.4]} 22...
Kh7 {[%clk 0:01:33.8]} 23. c3 {[%clk 0:01:37.8]} 23... Rg8+ {[%clk 0:01:33]} 24.
Kf2 {[%clk 0:01:28.4]} 24... Ng4+ {[%clk 0:01:29.7]} 25. Ke2 {[%clk 0:01:28.7]}
25... Rae8+ {[%clk 0:01:30.7]} 26. Kd2 {[%clk 0:01:29.2]} 26... Nxh2 {[%clk
0:01:30.4]} 27. Bc2+ {[%clk 0:01:26.6]} 27... Kh8 {[%clk 0:01:29.6]} 28. Rf2
{[%clk 0:01:22.5]} 28... Ng4 {[%clk 0:01:30.2]} 29. Rf5 {[%clk 0:01:19]} 29...
Nh6 {[%clk 0:01:14.2]} 30. Rf2 {[%clk 0:00:53.8]} 30... Ng4 {[%clk 0:01:09.1]}
31. Re2 {[%clk 0:00:38.6]} 31... Nxf6 {[%clk 0:01:06.6]} 32. Rxe8 {[%clk
0:00:34.1]} 32... Nxe8 {[%clk 0:00:55.3]} 33. Rf1 {[%clk 0:00:33.6]} 33... Nd6
{[%clk 0:00:54]} 34. b3 {[%clk 0:00:25.9]} 34... Rg2+ {[%clk 0:00:53.7]} 35. Kc1
{[%clk 0:00:25.8]} 35... Kg7 {[%clk 0:00:52.7]} 36. h5 {[%clk 0:00:26.4]} 36...
Rh2 {[%clk 0:00:48.4]} 37. Rg1+ {[%clk 0:00:26.7]} 37... Kf8 {[%clk 0:00:48.5]}
38. Rg5 {[%clk 0:00:26.2]} 38... Ne4 {[%clk 0:00:33.1]} 39. Bxe4 {[%clk
0:00:21.2]} 39... dxe4 {[%clk 0:00:35]} 40. Nf5 {[%clk 0:00:13.5]} 40... Bc6
{[%clk 0:00:11.6]} 41. h6 {[%clk 0:00:13.6]} 41... Bd7 {[%clk 0:00:11]} 42. Nd6
{[%clk 0:00:13]} 42... e3 {[%clk 0:00:10.7]} 43. Re5 {[%clk 0:00:05.6]} 43...
Rxh6 {[%clk 0:00:11]} 44. Nb7 {[%clk 0:00:06.1]} 44... Rh3 {[%clk 0:00:08.9]}
45. Nc5 {[%clk 0:00:06.4]} 45... Bc8 {[%clk 0:00:10.4]} 46. Kd1 {[%clk
0:00:06.6]} 46... f6 {[%clk 0:00:11.2]} 47. Rd5 {[%clk 0:00:04.5]} 47... Kf7
{[%clk 0:00:11.3]} 48. Ke1 {[%clk 0:00:03.3]} 48... Bg4 {[%clk 0:00:10.4]} 49.
Kf1 {[%clk 0:00:02.6]} 49... e2+ {[%clk 0:00:10.6]} 50. Kf2 {[%clk 0:00:03.6]}
50... Rh2+ {[%clk 0:00:11.8]} 51. Ke3 {[%clk 0:00:02.3]} 51... e1=Q+ {[%clk
0:00:12.7]} 52. Kf4 {[%clk 0:00:03.9]} 52... Rf2+ {[%clk 0:00:13.4]} 53. Kxg4
{[%clk 0:00:04.8]} 53... Qg1+ {[%clk 0:00:14.7]} 54. Kh5 {[%clk 0:00:06.7]}
54... Rh2# {[%clk 0:00:16.6]} 0-1

[Event "*** Titled Tuesday Blitz"]
[Site "Chess.com"]
[Date "2018.06.05"]
[Round "5"]
[White "Gareth-Bale11"]
[Black "Maitreia"]
[Result "1-0"]
[WhiteElo "2449"]
[BlackElo "2555"]
[TimeControl "180+2"]
[EndTime "14:15:03 PDT"]
[Termination "Gareth-Bale11 won by resignation"]

1. d4 {[%clk 0:03:01.9]} 1... Nf6 {[%clk 0:02:57]} 2. Nf3 {[%clk 0:03:01]} 2...
g6 {[%clk 0:02:57.5]} 3. c4 {[%clk 0:03:01.4]} 3... Bg7 {[%clk 0:02:58.2]} 4. g3
{[%clk 0:03:02.6]} 4... O-O {[%clk 0:02:58.7]} 5. Bg2 {[%clk 0:03:04.5]} 5... d6
{[%clk 0:02:59.3]} 6. O-O {[%clk 0:03:06.4]} 6... Nc6 {[%clk 0:02:59.5]} 7. Nc3
{[%clk 0:03:07]} 7... Rb8 {[%clk 0:02:56.6]} 8. Bd2 {[%clk 0:02:55.1]} 8... a6
{[%clk 0:02:56.4]} 9. Rc1 {[%clk 0:02:55.4]} 9... Bd7 {[%clk 0:02:56.9]} 10. Qc2
{[%clk 0:02:52.2]} 10... e5 {[%clk 0:02:56.1]} 11. dxe5 {[%clk 0:02:52]} 11...
dxe5 {[%clk 0:02:57.5]} 12. Rfd1 {[%clk 0:02:53.4]} 12... Nd4 {[%clk 0:02:55.9]}
13. Qb1 {[%clk 0:02:52.3]} 13... Bf5 {[%clk 0:02:50.9]} 14. e4 {[%clk
0:02:41.8]} 14... Bg4 {[%clk 0:02:43]} 15. Nxe5 {[%clk 0:02:33.2]} 15... Bxd1
{[%clk 0:02:38.8]} 16. Rxd1 {[%clk 0:02:35.1]} 16... Qe7 {[%clk 0:02:31.3]} 17.
Nd3 {[%clk 0:02:27.4]} 17... Rbd8 {[%clk 0:02:29.9]} 18. Nd5 {[%clk 0:02:20]}
18... Nxd5 {[%clk 0:02:30.4]} 19. cxd5 {[%clk 0:02:21.9]} 19... c6 {[%clk
0:02:25.9]} 20. Bb4 {[%clk 0:02:21.5]} 20... Qc7 {[%clk 0:01:58]} 21. Bxf8
{[%clk 0:02:23.4]} 21... Kxf8 {[%clk 0:01:55.5]} 22. Nf4 {[%clk 0:02:16.7]}
22... Kg8 {[%clk 0:01:37.5]} 23. Qd3 {[%clk 0:02:11.3]} 23... Qb6 {[%clk
0:01:34]} 24. b3 {[%clk 0:02:07.6]} 24... h5 {[%clk 0:01:25.2]} 25. h4 {[%clk
0:02:06.4]} 25... Be5 {[%clk 0:01:24.5]} 26. Qc4 {[%clk 0:01:55.9]} 26... Qb5
{[%clk 0:01:12.9]} 27. Rxd4 {[%clk 0:01:52]} 27... Bxd4 {[%clk 0:01:10]} 28.
Qxd4 {[%clk 0:01:53.9]} 28... Qa5 {[%clk 0:01:05.7]} 29. g4 {[%clk 0:01:52.5]}
29... Qa3 {[%clk 0:00:47.7]} 30. Qf6 {[%clk 0:01:48.2]} 30... Rd6 {[%clk
0:00:34.3]} 31. Qe7 {[%clk 0:01:45.5]} 31... Qc1+ {[%clk 0:00:34.1]} 32. Bf1
{[%clk 0:01:42.9]} 32... Qxf4 {[%clk 0:00:36]} 33. gxh5 {[%clk 0:01:38.7]} 33...
Rf6 {[%clk 0:00:35.2]} 34. Qc5 {[%clk 0:01:32.1]} 34... cxd5 {[%clk 0:00:33.4]}
35. exd5 {[%clk 0:01:25.8]} 35... Qg4+ {[%clk 0:00:24.8]} 36. Bg2 {[%clk
0:01:21.6]} 36... Qxh5 {[%clk 0:00:25.3]} 37. Qd4 {[%clk 0:01:14.2]} 37... Rd6
{[%clk 0:00:20.2]} 38. Qf4 {[%clk 0:01:13.5]} 38... Rd7 {[%clk 0:00:14.1]} 39.
Qe3 {[%clk 0:00:56.4]} 39... Kg7 {[%clk 0:00:11.2]} 40. Qd4+ {[%clk 0:00:55.5]}
40... Kh7 {[%clk 0:00:11.9]} 41. Qf4 {[%clk 0:00:54]} 41... Qd1+ {[%clk
0:00:10.7]} 42. Kh2 {[%clk 0:00:54.5]} 42... Qd3 {[%clk 0:00:10]} 43. Bf3 {[%clk
0:00:54.1]} 43... Qf5 {[%clk 0:00:09.6]} 44. Qe3 {[%clk 0:00:51.7]} 44... Qf6
{[%clk 0:00:09.3]} 45. Kg3 {[%clk 0:00:49.1]} 45... Kg7 {[%clk 0:00:10.3]} 46.
Bg4 {[%clk 0:00:43.9]} 46... Re7 {[%clk 0:00:11.2]} 47. Qf4 {[%clk 0:00:43.9]}
47... Qe5 {[%clk 0:00:11.9]} 48. d6 {[%clk 0:00:43.9]} 48... Qxf4+ {[%clk
0:00:11.7]} 49. Kxf4 {[%clk 0:00:45.8]} 49... Re8 {[%clk 0:00:11.1]} 50. d7
{[%clk 0:00:46]} 50... Rd8 {[%clk 0:00:11.7]} 51. Ke5 {[%clk 0:00:43.7]} 51...
f5 {[%clk 0:00:12.6]} 52. Ke6 {[%clk 0:00:42.6]} 52... fxg4 {[%clk 0:00:11.5]}
53. Ke7 {[%clk 0:00:43.7]} 53... Ra8 {[%clk 0:00:07]} 54. d8=Q {[%clk
0:00:41.8]} 54... Rxd8 {[%clk 0:00:08.1]} 55. Kxd8 {[%clk 0:00:43.6]} 55... Kf6
{[%clk 0:00:09.9]} 56. Ke8 {[%clk 0:00:41.9]} 56... b5 {[%clk 0:00:05.9]} 57.
Kf8 {[%clk 0:00:37.7]} 57... b4 {[%clk 0:00:06.1]} 58. Kg8 {[%clk 0:00:38.5]}
58... Kf5 {[%clk 0:00:07.4]} 59. Kg7 {[%clk 0:00:37.4]} 59... Kf4 {[%clk
0:00:08.6]} 60. Kxg6 {[%clk 0:00:37.8]} 60... Kf3 {[%clk 0:00:10.1]} 61. Kg5
{[%clk 0:00:38.3]} 61... g3 {[%clk 0:00:05.4]} 62. fxg3 {[%clk 0:00:37.4]} 62...
Ke3 {[%clk 0:00:06.5]} 63. h5 {[%clk 0:00:39.3]} 63... Kd3 {[%clk 0:00:07.8]}
64. h6 {[%clk 0:00:41.2]} 64... Kc3 {[%clk 0:00:09.4]} 1-0